[Event "*** MasterClass Titled Tuesday Blitz"]
[Site "Chess.com"]
[Date "2017.10.03"]
[Round "10"]
[White "Bad4life"]
[Black "PowerThinking2650"]
[Result "1-0"]
[WhiteElo "2204"]
[BlackElo "2136"]
[TimeControl "180+2"]
[EndTime "15:14:15 PDT"]
[Termination "Bad4life won on time"]

1. e4 {[%clk 0:03:01.9]} 1... e5 {[%clk 0:02:55.7]} 2. Nf3 {[%clk 0:03:02.5]}
2... Nc6 {[%clk 0:02:56.4]} 3. Bc4 {[%clk 0:03:03.1]} 3... Nf6 {[%clk
0:02:56.2]} 4. d3 {[%clk 0:03:03.4]} 4... Be7 {[%clk 0:02:56.4]} 5. a4 {[%clk
0:03:03.8]} 5... O-O {[%clk 0:02:50.6]} 6. O-O {[%clk 0:03:04.6]} 6... d6 {[%clk
0:02:49.7]} 7. a5 {[%clk 0:03:05.1]} 7... Be6 {[%clk 0:02:40.2]} 8. Nc3 {[%clk
0:03:03.2]} 8... d5 {[%clk 0:02:36.9]} 9. exd5 {[%clk 0:02:56.4]} 9... Nxd5
{[%clk 0:02:37]} 10. Ne4 {[%clk 0:02:31.4]} 10... h6 {[%clk 0:02:06.8]} 11. a6
{[%clk 0:02:29.2]} 11... b6 {[%clk 0:02:06.5]} 12. Re1 {[%clk 0:02:21.2]} 12...
Qd7 {[%clk 0:01:34.4]} 13. Bb5 {[%clk 0:02:20.3]} 13... f6 {[%clk 0:01:29.4]}
14. d4 {[%clk 0:02:10.5]} 14... Rad8 {[%clk 0:00:49.7]} 15. c4 {[%clk
0:02:02.4]} 15... Ndb4 {[%clk 0:00:31.9]} 16. d5 {[%clk 0:01:55.8]} 16... Qe8
{[%clk 0:00:20.1]} 17. Qa4 {[%clk 0:01:41]} 17... Bg4 {[%clk 0:00:10.8]} 18.
Bxc6 {[%clk 0:01:34.4]} 18... Qg6 {[%clk 0:00:06.8]} 19. Qb3 {[%clk 0:01:06.9]}
19... f5 {[%clk 0:00:06.3]} 20. d6 {[%clk 0:00:59.3]} 20... cxd6 {[%clk
0:00:04.9]} 21. Qxb4 {[%clk 0:00:53.7]} 21... fxe4 {[%clk 0:00:05.5]} 22. Bd5+
{[%clk 0:00:52.3]} 22... Kh8 {[%clk 0:00:04.8]} 23. Bxe4 {[%clk 0:00:53.2]}
23... Qh5 {[%clk 0:00:06]} 24. Ra3 {[%clk 0:00:51.2]} 24... Rf7 {[%clk
0:00:05.3]} 25. Bd5 {[%clk 0:00:49.6]} 1-0

[Event "*** MasterClass Titled Tuesday Blitz"]
[Site "Chess.com"]
[Date "2017.10.03"]
[Round "10"]
[White "Superfelix"]
[Black "TregubovP"]
[Result "1/2-1/2"]
[WhiteElo "2332"]
[BlackElo "2517"]
[TimeControl "180+2"]
[EndTime "15:14:26 PDT"]
[Termination "Game drawn by repetition"]

1. e4 {[%clk 0:03:01.3]} 1... c5 {[%clk 0:03:00.7]} 2. Nf3 {[%clk 0:03:01.2]}
2... e6 {[%clk 0:03:01.9]} 3. g3 {[%clk 0:03:01.8]} 3... d5 {[%clk 0:02:56.8]}
4. exd5 {[%clk 0:03:02.3]} 4... exd5 {[%clk 0:02:58.3]} 5. Bg2 {[%clk
0:03:03.6]} 5... Qe7+ {[%clk 0:02:58.4]} 6. Qe2 {[%clk 0:03:01.8]} 6... Qxe2+
{[%clk 0:02:58.1]} 7. Kxe2 {[%clk 0:03:03.6]} 7... Nc6 {[%clk 0:02:59.2]} 8. c3
{[%clk 0:03:01.3]} 8... Bf5 {[%clk 0:02:44.4]} 9. Nh4 {[%clk 0:02:57.8]} 9...
Bg4+ {[%clk 0:02:31.7]} 10. f3 {[%clk 0:02:56.9]} 10... Be6 {[%clk 0:02:31.9]}
11. f4 {[%clk 0:02:58.2]} 11... Nge7 {[%clk 0:02:20]} 12. Re1 {[%clk 0:02:55.4]}
12... O-O-O {[%clk 0:02:19.9]} 13. d3 {[%clk 0:02:51.7]} 13... Nf5 {[%clk
0:02:13.1]} 14. Nxf5 {[%clk 0:02:51.1]} 14... Bxf5 {[%clk 0:02:14.1]} 15. h3
{[%clk 0:02:48.5]} 15... h5 {[%clk 0:02:14.3]} 16. Be3 {[%clk 0:02:28.3]} 16...
d4 {[%clk 0:02:11.9]} 17. Bxc6 {[%clk 0:02:26.8]} 17... bxc6 {[%clk 0:02:04.6]}
18. cxd4 {[%clk 0:02:27.3]} 18... cxd4 {[%clk 0:02:05.2]} 19. Bf2 {[%clk
0:02:28.2]} 19... Bb4 {[%clk 0:01:57.8]} 20. Rc1 {[%clk 0:02:21.8]} 20... Rhe8+
{[%clk 0:01:57.7]} 21. Kf3 {[%clk 0:02:22.5]} 21... Bxd3 {[%clk 0:01:59]} 22. g4
{[%clk 0:02:17.3]} 22... Be2+ {[%clk 0:01:49.8]} 23. Kg3 {[%clk 0:02:18.2]}
23... d3 {[%clk 0:01:49.9]} 24. Rxc6+ {[%clk 0:02:11.9]} 24... Kb7 {[%clk
0:01:45]} 25. Rc4 {[%clk 0:02:12.6]} 25... a5 {[%clk 0:01:38.2]} 26. Nc3 {[%clk
0:01:53.5]} 26... Bxc3 {[%clk 0:01:31]} 27. bxc3 {[%clk 0:01:54.6]} 27... d2
{[%clk 0:01:32.1]} 28. Rb1+ {[%clk 0:01:55.7]} 28... Ka8 {[%clk 0:01:13.4]} 29.
Rc7 {[%clk 0:01:43.4]} 29... Rd3+ {[%clk 0:01:13.5]} 30. Kh4 {[%clk 0:01:25.3]}
30... Rde3 {[%clk 0:01:00.8]} 31. Bxe3 {[%clk 0:00:32.3]} 31... Rxe3 {[%clk
0:01:00]} 32. Rc8+ {[%clk 0:00:27.2]} 32... Ka7 {[%clk 0:01:00.1]} 33. Rc7+
{[%clk 0:00:28.5]} 33... Ka6 {[%clk 0:01:01]} 34. Rc6+ {[%clk 0:00:26]} 34...
Ka7 {[%clk 0:01:01.6]} 35. Rc7+ {[%clk 0:00:26.4]} 35... Ka6 {[%clk 0:01:02.7]}
36. Rc6+ {[%clk 0:00:27.7]} 36... Ka7 {[%clk 0:01:03.8]} 37. Rc7+ {[%clk
0:00:28.4]} 37... Ka6 {[%clk 0:01:04.8]} 38. Rc6+ {[%clk 0:00:26.6]} 38... Ka7
{[%clk 0:01:05.8]} 39. Rc7+ {[%clk 0:00:28]} 39... Ka6 {[%clk 0:01:06.9]}
1/2-1/2

[Event "*** MasterClass Titled Tuesday Blitz"]
[Site "Chess.com"]
[Date "2017.10.03"]
[Round "10"]
[White "TryingToGetBetter94"]
[Black "Daniela_Movileanu"]
[Result "0-1"]
[WhiteElo "2275"]
[BlackElo "2086"]
[TimeControl "180+2"]
[EndTime "15:15:08 PDT"]
[Termination "Daniela_Movileanu won by checkmate"]

1. d4 {[%clk 0:03:01.9]} 1... Nf6 {[%clk 0:03:00.6]} 2. c4 {[%clk 0:03:03.3]}
2... g6 {[%clk 0:03:02.1]} 3. Nc3 {[%clk 0:03:04.8]} 3... d5 {[%clk 0:03:02.8]}
4. cxd5 {[%clk 0:03:05.6]} 4... Nxd5 {[%clk 0:03:04.7]} 5. e4 {[%clk 0:03:06.9]}
5... Nxc3 {[%clk 0:03:05.8]} 6. bxc3 {[%clk 0:03:08.8]} 6... Bg7 {[%clk
0:03:07.5]} 7. Nf3 {[%clk 0:03:10]} 7... O-O {[%clk 0:03:08.4]} 8. Be3 {[%clk
0:03:11.5]} 8... c5 {[%clk 0:03:10]} 9. Rc1 {[%clk 0:03:12.1]} 9... Nc6 {[%clk
0:03:08.9]} 10. d5 {[%clk 0:03:12.7]} 10... Ne5 {[%clk 0:03:04.1]} 11. Nxe5
{[%clk 0:03:11.6]} 11... Bxe5 {[%clk 0:03:06]} 12. f4 {[%clk 0:03:12]} 12... Bg7
{[%clk 0:02:53.7]} 13. Be2 {[%clk 0:03:13.2]} 13... e5 {[%clk 0:02:49.4]} 14.
O-O {[%clk 0:03:08.9]} 14... exf4 {[%clk 0:02:47.1]} 15. Bxf4 {[%clk 0:03:10.8]}
15... Re8 {[%clk 0:02:44.8]} 16. Bf3 {[%clk 0:03:05.6]} 16... Qa5 {[%clk
0:02:39.9]} 17. Qd2 {[%clk 0:02:51.4]} 17... c4 {[%clk 0:02:37.5]} 18. Rfe1
{[%clk 0:02:46.5]} 18... Bd7 {[%clk 0:02:38]} 19. e5 {[%clk 0:02:45.7]} 19...
Rac8 {[%clk 0:02:36.3]} 20. Kh1 {[%clk 0:01:41.8]} 20... b5 {[%clk 0:02:20.2]}
21. a3 {[%clk 0:01:21.1]} 21... Qxa3 {[%clk 0:02:14.6]} 22. Ra1 {[%clk
0:01:17.8]} 22... Qc5 {[%clk 0:02:15.1]} 23. Be3 {[%clk 0:01:16.2]} 23... Qe7
{[%clk 0:02:14.6]} 24. Bd4 {[%clk 0:01:11.8]} 24... Bf5 {[%clk 0:01:53.2]} 25.
Rxa7 {[%clk 0:01:10.4]} 25... Qh4 {[%clk 0:01:49.8]} 26. g3 {[%clk 0:01:03.1]}
26... Qh6 {[%clk 0:01:49.1]} 27. Be3 {[%clk 0:00:57]} 27... Qh3 {[%clk
0:01:44.2]} 28. Bf4 {[%clk 0:00:58.3]} 28... g5 {[%clk 0:01:38.7]} 29. Bg2
{[%clk 0:00:56.2]} 29... Qg4 {[%clk 0:01:38.5]} 30. Bxg5 {[%clk 0:00:45.3]}
30... Rxe5 {[%clk 0:01:38.8]} 31. Rxe5 {[%clk 0:00:37.7]} 31... Bxe5 {[%clk
0:01:40.7]} 32. d6 {[%clk 0:00:39.3]} 32... Bxc3 {[%clk 0:01:24]} 33. Qd5 {[%clk
0:00:30.5]} 33... Be6 {[%clk 0:01:22.3]} 34. Qf3 {[%clk 0:00:11.6]} 34... Qd4
{[%clk 0:01:15.4]} 35. Rc7 {[%clk 0:00:07.3]} 35... Rxc7 {[%clk 0:01:13]} 36.
dxc7 {[%clk 0:00:08.4]} 36... Ba5 {[%clk 0:01:11]} 37. Qa8+ {[%clk 0:00:08.6]}
37... Kg7 {[%clk 0:01:10.1]} 38. Bc6 {[%clk 0:00:05.8]} 38... Qd1+ {[%clk
0:00:54.5]} 39. Kg2 {[%clk 0:00:06.4]} 39... Qe2+ {[%clk 0:00:54.6]} 40. Kg1
{[%clk 0:00:03.7]} 40... Bb6+ {[%clk 0:00:54.6]} 41. Kh1 {[%clk 0:00:05.1]}
41... Qf1# {[%clk 0:00:55.1]} 0-1

[Event "*** MasterClass Titled Tuesday Blitz"]
[Site "Chess.com"]
[Date "2017.10.03"]
[Round "10"]
[White "Paralinch"]
[Black "wonderfultime"]
[Result "0-1"]
[WhiteElo "2672"]
[BlackElo "2610"]
[TimeControl "180+2"]
[EndTime "15:15:27 PDT"]
[Termination "wonderfultime won by checkmate"]

1. e4 {[%clk 0:03:01.9]} 1... e6 {[%clk 0:03:00.7]} 2. d4 {[%clk 0:03:02.6]}
2... d5 {[%clk 0:03:01.8]} 3. exd5 {[%clk 0:03:04.5]} 3... exd5 {[%clk
0:03:02.9]} 4. Nf3 {[%clk 0:03:06.1]} 4... Bd6 {[%clk 0:03:00.9]} 5. c4 {[%clk
0:03:07.2]} 5... dxc4 {[%clk 0:02:08.1]} 6. Bxc4 {[%clk 0:03:07.3]} 6... Nf6
{[%clk 0:02:10]} 7. O-O {[%clk 0:03:05.4]} 7... O-O {[%clk 0:02:11.2]} 8. h3
{[%clk 0:03:04.4]} 8... c6 {[%clk 0:02:10]} 9. Nc3 {[%clk 0:03:04.2]} 9... Nbd7
{[%clk 0:02:08.2]} 10. Bb3 {[%clk 0:03:02.2]} 10... Nb6 {[%clk 0:02:00.7]} 11.
Ne5 {[%clk 0:03:01.1]} 11... Nfd5 {[%clk 0:01:59.7]} 12. Ne4 {[%clk 0:02:55.4]}
12... Be7 {[%clk 0:01:57.7]} 13. Re1 {[%clk 0:02:48.3]} 13... Be6 {[%clk
0:01:56.8]} 14. Nc5 {[%clk 0:02:49.1]} 14... Bxc5 {[%clk 0:01:57]} 15. dxc5
{[%clk 0:02:50.2]} 15... Nd7 {[%clk 0:01:58.9]} 16. Nxd7 {[%clk 0:02:41.7]}
16... Qxd7 {[%clk 0:02:00.8]} 17. Bd2 {[%clk 0:02:37.5]} 17... Rfe8 {[%clk
0:02:00.6]} 18. Rc1 {[%clk 0:02:24]} 18... Rad8 {[%clk 0:01:57.1]} 19. Ba5
{[%clk 0:02:24.7]} 19... Rc8 {[%clk 0:01:54.5]} 20. Qd4 {[%clk 0:02:23.3]} 20...
f6 {[%clk 0:01:45.6]} 21. Bc2 {[%clk 0:02:11.6]} 21... Bf7 {[%clk 0:01:42.1]}
22. a3 {[%clk 0:02:02.9]} 22... Bg6 {[%clk 0:01:36]} 23. Bb3 {[%clk 0:02:03.4]}
23... Bf7 {[%clk 0:01:37.3]} 24. Qh4 {[%clk 0:01:54.4]} 24... Rxe1+ {[%clk
0:01:29.3]} 25. Rxe1 {[%clk 0:01:56.3]} 25... Re8 {[%clk 0:01:30.9]} 26. Rxe8+
{[%clk 0:01:42.7]} 26... Qxe8 {[%clk 0:01:32.8]} 27. Qg3 {[%clk 0:01:43.8]}
27... h5 {[%clk 0:01:07.2]} 28. Qd6 {[%clk 0:01:31.8]} 28... Kh7 {[%clk
0:01:04.2]} 29. Bc4 {[%clk 0:01:21.8]} 29... Qe4 {[%clk 0:00:59.3]} 30. b3
{[%clk 0:00:41.1]} 30... Nf4 {[%clk 0:00:30.2]} 31. Bf1 {[%clk 0:00:41.8]} 31...
Bd5 {[%clk 0:00:30.3]} 32. Bd2 {[%clk 0:00:33.8]} 32... Nxg2 {[%clk 0:00:16.7]}
33. Qg3 {[%clk 0:00:25.3]} 33... Ne1 {[%clk 0:00:17.9]} 34. f4 {[%clk
0:00:21.2]} 34... Nf3+ {[%clk 0:00:18.3]} 35. Kf2 {[%clk 0:00:22.7]} 35... Nxd2
{[%clk 0:00:16.8]} 36. Bd3 {[%clk 0:00:24]} 36... f5 {[%clk 0:00:18.3]} 37. Qg5
{[%clk 0:00:22.1]} 37... Qf3+ {[%clk 0:00:17.8]} 38. Ke1 {[%clk 0:00:22.6]}
38... Qe3+ {[%clk 0:00:19.2]} 39. Kd1 {[%clk 0:00:23.3]} 39... Bxb3+ {[%clk
0:00:20.2]} 40. Kc1 {[%clk 0:00:23.4]} 40... Nc4+ {[%clk 0:00:20.2]} 41. Kb1
{[%clk 0:00:24.5]} 41... Qe1# {[%clk 0:00:21.4]} 0-1

[Event "*** MasterClass Titled Tuesday Blitz"]
[Site "Chess.com"]
[Date "2017.10.03"]
[Round "10"]
[White "toad"]
[Black "dtn70"]
[Result "1-0"]
[WhiteElo "2152"]
[BlackElo "2279"]
[TimeControl "180+2"]
[EndTime "15:15:29 PDT"]
[Termination "toad won by resignation"]

1. d4 {[%clk 0:03:01.9]} 1... d6 {[%clk 0:03:00.6]} 2. Nf3 {[%clk 0:03:02]} 2...
Bg4 {[%clk 0:03:00.5]} 3. Nbd2 {[%clk 0:02:58.9]} 3... e6 {[%clk 0:02:59.8]} 4.
g3 {[%clk 0:02:59.7]} 4... Nf6 {[%clk 0:02:59.6]} 5. Bg2 {[%clk 0:03:00.6]} 5...
c6 {[%clk 0:02:59.6]} 6. O-O {[%clk 0:03:01.2]} 6... d5 {[%clk 0:03:00.1]} 7. c4
{[%clk 0:02:55.6]} 7... Be7 {[%clk 0:02:59.6]} 8. Qc2 {[%clk 0:02:56.4]} 8...
O-O {[%clk 0:02:59]} 9. e4 {[%clk 0:02:55.4]} 9... dxe4 {[%clk 0:02:54.9]} 10.
Nxe4 {[%clk 0:02:56.7]} 10... Bf5 {[%clk 0:02:49.5]} 11. Nxf6+ {[%clk
0:02:56.7]} 11... Bxf6 {[%clk 0:02:50.1]} 12. Qe2 {[%clk 0:02:56.8]} 12... Nd7
{[%clk 0:02:47.3]} 13. Rd1 {[%clk 0:02:57.4]} 13... Re8 {[%clk 0:02:46.3]} 14.
Ne5 {[%clk 0:02:56]} 14... Nf8 {[%clk 0:02:28]} 15. Be3 {[%clk 0:02:41.9]} 15...
Qa5 {[%clk 0:02:24.3]} 16. c5 {[%clk 0:02:23.4]} 16... Rad8 {[%clk 0:02:17]} 17.
Nc4 {[%clk 0:02:22.4]} 17... Qa6 {[%clk 0:02:09]} 18. Bf3 {[%clk 0:01:54.8]}
18... Be7 {[%clk 0:02:02.4]} 19. a3 {[%clk 0:01:47.8]} 19... Nd7 {[%clk
0:01:50.6]} 20. b4 {[%clk 0:01:46.5]} 20... Nf6 {[%clk 0:01:50.5]} 21. a4 {[%clk
0:01:47.4]} 21... Nd5 {[%clk 0:01:46]} 22. Bd2 {[%clk 0:01:12.3]} 22... Bc2
{[%clk 0:01:32.4]} 23. Re1 {[%clk 0:01:12.6]} 23... Bb3 {[%clk 0:01:24.5]} 24.
Ne5 {[%clk 0:01:12.9]} 24... Qxe2 {[%clk 0:01:23]} 25. Rxe2 {[%clk 0:01:13.4]}
25... Bf6 {[%clk 0:01:18.5]} 26. b5 {[%clk 0:01:14]} 26... Bxe5 {[%clk
0:01:18.1]} 27. Rxe5 {[%clk 0:01:09.3]} 27... Ne7 {[%clk 0:01:10.5]} 28. Bc3
{[%clk 0:01:10.4]} 28... Bd5 {[%clk 0:01:10.4]} 29. Bxd5 {[%clk 0:01:10.9]}
29... Nxd5 {[%clk 0:01:10.4]} 30. Bd2 {[%clk 0:01:11.9]} 30... Nf6 {[%clk
0:01:02.9]} 31. Bc3 {[%clk 0:00:58.6]} 31... Rd7 {[%clk 0:01:03]} 32. Rb1 {[%clk
0:00:51.8]} 32... Nd5 {[%clk 0:00:57.3]} 33. Bd2 {[%clk 0:00:53.1]} 33... f6
{[%clk 0:00:57.2]} 34. Ree1 {[%clk 0:00:52]} 34... Nc7 {[%clk 0:00:52]} 35. bxc6
{[%clk 0:00:47]} 35... bxc6 {[%clk 0:00:51.9]} 36. Rb7 {[%clk 0:00:48.4]} 36...
Red8 {[%clk 0:00:49.5]} 37. Rxa7 {[%clk 0:00:46.9]} 37... e5 {[%clk 0:00:48.2]}
38. dxe5 {[%clk 0:00:34.5]} 38... fxe5 {[%clk 0:00:40.5]} 39. Ba5 {[%clk
0:00:32.1]} 39... Nb5 {[%clk 0:00:24]} 40. Rxd7 {[%clk 0:00:32.8]} 40... Rxd7
{[%clk 0:00:23.8]} 41. axb5 {[%clk 0:00:33.9]} 41... cxb5 {[%clk 0:00:25.1]} 42.
c6 {[%clk 0:00:35.1]} 42... Rd6 {[%clk 0:00:25.2]} 43. Rc1 {[%clk 0:00:33.2]}
43... Rd8 {[%clk 0:00:25.4]} 44. c7 {[%clk 0:00:33.8]} 44... Rc8 {[%clk
0:00:26.7]} 45. Rd1 {[%clk 0:00:35.1]} 45... Kf7 {[%clk 0:00:26.9]} 46. Rd8
{[%clk 0:00:36.1]} 46... Rxc7 {[%clk 0:00:28]} 47. Bxc7 {[%clk 0:00:36.8]} 47...
b4 {[%clk 0:00:29.9]} 48. Bxe5 {[%clk 0:00:37.5]} 48... Ke6 {[%clk 0:00:30.6]}
49. Bb2 {[%clk 0:00:38.1]} 1-0

[Event "*** MasterClass Titled Tuesday Blitz"]
[Site "Chess.com"]
[Date "2017.10.03"]
[Round "10"]
[White "tigra"]
[Black "TheFlaminGM"]
[Result "0-1"]
[WhiteElo "2638"]
[BlackElo "2609"]
[TimeControl "180+2"]
[EndTime "15:15:37 PDT"]
[Termination "TheFlaminGM won by checkmate"]

1. e4 {[%clk 0:03:01.9]} 1... d6 {[%clk 0:02:57.5]} 2. d4 {[%clk 0:03:02.5]}
2... Nf6 {[%clk 0:02:58.2]} 3. Nc3 {[%clk 0:03:04.2]} 3... e5 {[%clk 0:02:57.7]}
4. Nf3 {[%clk 0:03:04.5]} 4... Nbd7 {[%clk 0:02:57.6]} 5. Bc4 {[%clk 0:03:06.1]}
5... Be7 {[%clk 0:02:57.1]} 6. O-O {[%clk 0:03:03.6]} 6... O-O {[%clk
0:02:58.3]} 7. Re1 {[%clk 0:03:05.1]} 7... c6 {[%clk 0:02:59.3]} 8. a4 {[%clk
0:03:05.7]} 8... exd4 {[%clk 0:03:00.8]} 9. Nxd4 {[%clk 0:03:06.5]} 9... Ne5
{[%clk 0:03:02.7]} 10. Bf1 {[%clk 0:03:06.7]} 10... Re8 {[%clk 0:03:03.5]} 11.
f4 {[%clk 0:03:04.1]} 11... Ng6 {[%clk 0:03:00.9]} 12. Qd3 {[%clk 0:03:04.6]}
12... d5 {[%clk 0:02:54.4]} 13. e5 {[%clk 0:03:04.8]} 13... Bc5 {[%clk
0:02:51.8]} 14. a5 {[%clk 0:02:56.1]} 14... a6 {[%clk 0:02:37]} 15. Na4 {[%clk
0:02:42.8]} 15... Ba7 {[%clk 0:02:37.8]} 16. Nb6 {[%clk 0:02:38.7]} 16... Bxb6
{[%clk 0:02:38.4]} 17. axb6 {[%clk 0:02:40.2]} 17... Qxb6 {[%clk 0:02:39.3]} 18.
c3 {[%clk 0:02:19.6]} 18... Ne4 {[%clk 0:02:33.5]} 19. b4 {[%clk 0:02:19.5]}
19... Ne7 {[%clk 0:02:20.6]} 20. Be3 {[%clk 0:02:14.1]} 20... Qd8 {[%clk
0:02:21.8]} 21. c4 {[%clk 0:02:05.3]} 21... Bf5 {[%clk 0:02:13]} 22. Nxf5 {[%clk
0:02:06]} 22... Nxf5 {[%clk 0:02:12.6]} 23. cxd5 {[%clk 0:02:07.2]} 23... cxd5
{[%clk 0:02:10.6]} 24. Rad1 {[%clk 0:02:04.1]} 24... Qe7 {[%clk 0:02:08.2]} 25.
Qxd5 {[%clk 0:02:03.3]} 25... Nc3 {[%clk 0:02:06.4]} 26. Qf3 {[%clk 0:01:42.9]}
26... Nxe3 {[%clk 0:02:06.1]} 27. Rd6 {[%clk 0:01:34.2]} 27... Nf5 {[%clk
0:01:52.7]} 28. Rb6 {[%clk 0:01:34.9]} 28... Rac8 {[%clk 0:01:49.6]} 29. Rxb7
{[%clk 0:01:34]} 29... Nh4 {[%clk 0:01:43.8]} 30. Qxc3 {[%clk 0:01:08]} 30...
Qxb7 {[%clk 0:01:44]} 31. Qd4 {[%clk 0:01:00.8]} 31... Rc2 {[%clk 0:01:38.3]}
32. Re4 {[%clk 0:00:57.2]} 32... Rc1 {[%clk 0:01:31]} 33. Kf2 {[%clk 0:00:57.2]}
33... Rec8 {[%clk 0:01:26.7]} 34. g4 {[%clk 0:00:52.7]} 34... R8c2+ {[%clk
0:01:19.3]} 35. Kg3 {[%clk 0:00:52.1]} 35... Ng6 {[%clk 0:01:13.1]} 36. Bd3
{[%clk 0:00:46.1]} 36... Rd2 {[%clk 0:01:10.3]} 37. f5 {[%clk 0:00:30.9]} 37...
Rcd1 {[%clk 0:01:06.7]} 38. Qd8+ {[%clk 0:00:25.3]} 38... Nf8 {[%clk 0:01:07.2]}
39. Re3 {[%clk 0:00:26.9]} 39... Qg2+ {[%clk 0:01:01.9]} 40. Kf4 {[%clk
0:00:28.2]} 40... Rf2+ {[%clk 0:00:58.8]} 41. Kg5 {[%clk 0:00:29.1]} 41... h6+
{[%clk 0:00:57.9]} 42. Kh4 {[%clk 0:00:30.3]} 42... Rf3 {[%clk 0:00:48.2]} 43.
Rxf3 {[%clk 0:00:21.9]} 43... Qxf3 {[%clk 0:00:49]} 44. e6 {[%clk 0:00:17.3]}
44... Rxd3 {[%clk 0:00:45.4]} 45. exf7+ {[%clk 0:00:16.4]} 45... Kh7 {[%clk
0:00:46.3]} 46. Qxd3 {[%clk 0:00:08.4]} 46... Qxd3 {[%clk 0:00:48.2]} 47. g5
{[%clk 0:00:10.2]} 47... Qe4+ {[%clk 0:00:49]} 48. Kh5 {[%clk 0:00:11.1]} 48...
Qxf5 {[%clk 0:00:50.4]} 49. h4 {[%clk 0:00:11.5]} 49... g6# {[%clk 0:00:51.7]}
0-1

[Event "*** MasterClass Titled Tuesday Blitz"]
[Site "Chess.com"]
[Date "2017.10.03"]
[Round "10"]
[White "peteseeger"]
[Black "Gabrielian_Artur"]
[Result "0-1"]
[WhiteElo "2153"]
[BlackElo "2528"]
[TimeControl "180+2"]
[EndTime "15:15:38 PDT"]
[Termination "Gabrielian_Artur won by resignation"]

1. e4 {[%clk 0:02:40.9]} 1... c5 {[%clk 0:02:58.3]} 2. Nf3 {[%clk 0:02:41.6]}
2... d6 {[%clk 0:02:59]} 3. Bb5+ {[%clk 0:02:41.9]} 3... Nd7 {[%clk 0:02:58.8]}
4. O-O {[%clk 0:02:41.3]} 4... Nf6 {[%clk 0:02:59.4]} 5. Re1 {[%clk 0:02:41.5]}
5... a6 {[%clk 0:02:57.8]} 6. Bd3 {[%clk 0:02:42.1]} 6... e5 {[%clk 0:02:57.6]}
7. c3 {[%clk 0:02:41.6]} 7... Be7 {[%clk 0:02:58.3]} 8. Bc2 {[%clk 0:02:35.8]}
8... O-O {[%clk 0:02:58.6]} 9. d4 {[%clk 0:02:36.6]} 9... b5 {[%clk 0:02:59.7]}
10. a4 {[%clk 0:02:31]} 10... Bb7 {[%clk 0:03:00.2]} 11. Nbd2 {[%clk 0:02:26.6]}
11... cxd4 {[%clk 0:02:58.7]} 12. cxd4 {[%clk 0:02:26.9]} 12... Qb6 {[%clk
0:02:55]} 13. axb5 {[%clk 0:02:22.3]} 13... axb5 {[%clk 0:02:55.6]} 14. Rxa8
{[%clk 0:02:20.9]} 14... Bxa8 {[%clk 0:02:50.8]} 15. Nf1 {[%clk 0:02:17.3]}
15... Rc8 {[%clk 0:02:44]} 16. Ng3 {[%clk 0:02:15]} 16... g6 {[%clk 0:02:42.3]}
17. Bb3 {[%clk 0:02:13.1]} 17... exd4 {[%clk 0:02:26.6]} 18. Nxd4 {[%clk
0:02:03.9]} 18... Nc5 {[%clk 0:02:22.6]} 19. Bc2 {[%clk 0:01:49.7]} 19... Bf8
{[%clk 0:02:13.3]} 20. Bg5 {[%clk 0:01:40.9]} 20... Bg7 {[%clk 0:02:13.6]} 21.
b4 {[%clk 0:01:15.4]} 21... Ncd7 {[%clk 0:02:06.1]} 22. Bb3 {[%clk 0:01:14.7]}
22... Ne5 {[%clk 0:02:05.3]} 23. h3 {[%clk 0:01:09.4]} 23... Rc3 {[%clk
0:01:55.6]} 24. Be3 {[%clk 0:01:01.8]} 24... Rd3 {[%clk 0:01:39.8]} 25. Qc2
{[%clk 0:00:56.5]} 25... Rxe3 {[%clk 0:01:22.5]} 26. Rxe3 {[%clk 0:00:47.1]}
26... Bb7 {[%clk 0:01:13.1]} 27. Nf3 {[%clk 0:00:43.2]} 27... Bh6 {[%clk
0:00:55.7]} 28. Rc3 {[%clk 0:00:39.5]} 28... Bf4 {[%clk 0:00:51.3]} 29. Ne2
{[%clk 0:00:18.9]} 29... Bxe4 {[%clk 0:00:43.6]} 30. Qa2 {[%clk 0:00:12.2]}
30... Bxf3 {[%clk 0:00:20.6]} 31. Nxf4 {[%clk 0:00:10]} 31... Bb7 {[%clk
0:00:21.5]} 32. Bxf7+ {[%clk 0:00:09.5]} 32... Nxf7 {[%clk 0:00:21.6]} 33. Qe6
{[%clk 0:00:09.4]} 33... Qd4 {[%clk 0:00:21]} 34. Rc7 {[%clk 0:00:07.7]} 34...
Bd5 {[%clk 0:00:18.9]} 35. Nxd5 {[%clk 0:00:06.7]} 35... Qxd5 {[%clk 0:00:17.8]}
36. Qxf6 {[%clk 0:00:07.6]} 36... h5 {[%clk 0:00:15.1]} 37. Kh2 {[%clk
0:00:08.1]} 37... Qe5+ {[%clk 0:00:15.2]} 38. g3 {[%clk 0:00:09]} 38... Qxf6
{[%clk 0:00:15.8]} 0-1

[Event "*** MasterClass Titled Tuesday Blitz"]
[Site "Chess.com"]
[Date "2017.10.03"]
[Round "10"]
[White "AndrewMcStone"]
[Black "WanderingPuppet"]
[Result "0-1"]
[WhiteElo "2088"]
[BlackElo "2327"]
[TimeControl "180+2"]
[EndTime "15:15:43 PDT"]
[Termination "WanderingPuppet won by resignation"]

1. d4 {[%clk 0:03:01.9]} 1... Nf6 {[%clk 0:02:52.5]} 2. c4 {[%clk 0:03:02.9]}
2... g6 {[%clk 0:02:46.7]} 3. Nc3 {[%clk 0:03:03.8]} 3... Bg7 {[%clk 0:02:47.5]}
4. e4 {[%clk 0:03:04.3]} 4... O-O {[%clk 0:02:49]} 5. Nge2 {[%clk 0:03:04.9]}
5... c5 {[%clk 0:02:47.6]} 6. d5 {[%clk 0:03:03.9]} 6... a6 {[%clk 0:02:28.5]}
7. a4 {[%clk 0:03:01.1]} 7... d6 {[%clk 0:02:20.9]} 8. Ng3 {[%clk 0:02:59.8]}
8... e6 {[%clk 0:02:22]} 9. Be2 {[%clk 0:03:00.7]} 9... exd5 {[%clk 0:02:20.8]}
10. exd5 {[%clk 0:02:59.5]} 10... h5 {[%clk 0:02:16.5]} 11. Bg5 {[%clk
0:02:59.8]} 11... Qa5 {[%clk 0:02:11.5]} 12. O-O {[%clk 0:02:45.8]} 12... Nbd7
{[%clk 0:01:32.2]} 13. Qd2 {[%clk 0:02:32.9]} 13... Re8 {[%clk 0:01:04.5]} 14.
Qf4 {[%clk 0:02:16]} 14... Nh7 {[%clk 0:00:53.2]} 15. Bh6 {[%clk 0:01:38]} 15...
Be5 {[%clk 0:00:51.6]} 16. Qd2 {[%clk 0:01:34.5]} 16... Ndf6 {[%clk 0:00:47.7]}
17. f4 {[%clk 0:00:41.4]} 17... Bd4+ {[%clk 0:00:47.1]} 18. Kh1 {[%clk
0:00:42.6]} 18... h4 {[%clk 0:00:40.3]} 19. f5 {[%clk 0:00:19.2]} 19... hxg3
{[%clk 0:00:40.9]} 20. fxg6 {[%clk 0:00:20.3]} 20... fxg6 {[%clk 0:00:41.3]} 21.
Qd3 {[%clk 0:00:14]} 21... Bf5 {[%clk 0:00:34.5]} 22. Qxg3 {[%clk 0:00:13]}
22... Re5 {[%clk 0:00:14.2]} 23. h4 {[%clk 0:00:04.9]} 23... Kh8 {[%clk
0:00:06.9]} 24. Bf4 {[%clk 0:00:04.6]} 24... Rg8 {[%clk 0:00:07.2]} 25. Bxe5
{[%clk 0:00:05.1]} 25... Bxe5 {[%clk 0:00:09.1]} 26. Qf2 {[%clk 0:00:04.4]}
26... Qd8 {[%clk 0:00:06.3]} 27. g3 {[%clk 0:00:04]} 27... Qe7 {[%clk
0:00:05.3]} 28. Rae1 {[%clk 0:00:03]} 28... Qg7 {[%clk 0:00:06.3]} 29. Bd1
{[%clk 0:00:04]} 29... Qh6 {[%clk 0:00:06.3]} 30. Ne2 {[%clk 0:00:04.6]} 30...
Ne4 {[%clk 0:00:07.1]} 31. Qg2 {[%clk 0:00:04.7]} 31... Nhf6 {[%clk 0:00:06]}
32. Rf3 {[%clk 0:00:04.6]} 32... Ng4 {[%clk 0:00:07]} 33. Ref1 {[%clk
0:00:05.5]} 33... Ne3 {[%clk 0:00:08.1]} 34. Qf2 {[%clk 0:00:04.6]} 34... Nxf1
{[%clk 0:00:09.1]} 35. Qxf1 {[%clk 0:00:05.2]} 35... Qh7 {[%clk 0:00:08]} 36.
Kg2 {[%clk 0:00:05.1]} 36... Qd7 {[%clk 0:00:07.6]} 37. Bc2 {[%clk 0:00:06]}
37... Bh3+ {[%clk 0:00:08.3]} 0-1